bitfinex-derivatives/quotes_SOLF0:USTF0_20250113
["timestamp","ask_amount","ask_price","bid_price","bid_amount"]
[1736778049988,35.4976393,176.34,176.21,1.6974]
[1736778050195,41.8776393,176.34,176.21,1.6974]
[1736778050585,41.8776393,176.34,176.29,2.8385]
[1736778050785,2.838,176.33,176.29,2.8385]
[1736778050988,39.0398393,176.34,176.3,2.8385]
[1736778052197,32.6598393,176.37,176.32,2.8381]
[1736778052398,6.38,176.38,176.25,32.6598393]
[1736778052599,6.38,176.38,176.26,1.5501]
[1736778052795,41.8767393,176.4,176.35,2.8375]
[1736778053609,2.8374,176.37,176.26,1.5501]
[1736778054206,39.0398393,176.4,176.26,1.5501]
[1736778055007,41.8768393,176.4,176.35,2.8376]
[1736778055509,2.8371,176.39,176.35,2.8376]
[1736778055714,2.8371,176.39,176.34,2.8378]
[1736778055915,26.41687059,176.4,176.26,1.5501]
[1736778056115,20.03687059,176.37,176.26,1.5501]
[1736778056416,6.38,176.36,176.26,1.5501]
[1736778056604,2.8377,176.35,176.26,1.5501]
[1736778056914,6.38,176.36,176.29,2.8386]
[1736778057110,2.8377,176.35,176.26,1.5501]
[1736778057309,6.38,176.36,176.26,1.5501]
[1736778057512,20.03687059,176.34,176.3,2.8385]
[1736778057711,22.87467059,176.34,176.3,2.8385]
[1736778057913,20.03687059,176.34,176.3,2.8385]
[1736778058314,20.03687059,176.34,176.26,1.5501]
[1736778058507,6.38,176.36,176.26,1.5501]
[1736778058712,6.38,176.37,176.26,1.5501]
[1736778059014,6.38,176.37,176.35,2.8376]
[1736778060011,6.38,176.37,176.26,1.5501]
[1736778060012,26.41687059,176.37,176.26,1.5501]
[1736778061320,29.25427059,176.37,176.33,2.8379]
[1736778062219,26.41687059,176.37,176.34,2.8378]
[1736778062425,26.41687059,176.37,176.26,1.5501]
[1736778063422,29.25427059,176.37,176.33,2.8379]
[1736778064221,20.03687059,176.37,176.34,2.8377]
[1736778064617,20.03687059,176.37,176.26,1.5501]
[1736778064818,20.03687059,176.34,176.21,1.6974]
[1736778065024,20.03687059,176.31,176.21,1.6974]
[1736778065213,6.38,176.31,176.21,1.6974]
[1736778065627,2.8385,176.3,176.26,2.8391]
[1736778065815,20.03687059,176.29,176.21,1.6974]
[1736778066214,2.839,176.27,176.23,2.8396]
[1736778066417,2.839,176.27,176.21,1.6974]
[1736778066725,20.03687059,176.29,176.21,1.6974]
[1736778067522,20.03687059,176.29,176.18,1.7135]
[1736778067722,22.87607059,176.26,176.21,2.8398]
[1736778067918,20.03687059,176.26,176.15,3.3924]
[1736778068419,20.03687059,176.26,176.18,2.8404]
[1736778068824,2.8401,176.2,176.16,2.8407]
[1736778069030,26.41687059,176.2,176.1,7.89279385]
[1736778069325,20.03687059,176.17,176.1,7.89279385]
[1736778069522,2.8407,176.16,176.12,2.8413]
[1736778069716,2.8407,176.16,176.08,3.2343]
[1736778069922,26.41687059,176.2,176.08,1.6135]
[1736778070128,20.03687059,176.15,176.06,31.5711754]
[1736778070828,20.03687059,176.15,176.11,2.8414]
[1736778071125,20.03687059,176.15,176.08,2.842]
[1736778071126,2.8414,176.13,176.08,2.842]
[1736778071329,6.38,176.13,176.03,3.2343]
[1736778072425,9.2212,176.13,176.08,2.8419]
[1736778072932,2.8414,176.12,176.08,2.8419]
[1736778073223,6.38,176.13,176.03,3.2343]
[1736778074123,9.2214,176.13,176.03,3.2343]
[1736778074529,6.38,176.13,176.03,3.2343]
[1736778074931,6.38,176.13,176.07,2.8421]
[1736778075126,6.38,176.13,176.03,3.2343]
[1736778075329,20.09798114,176.14,176.03,3.2343]
[1736778075830,2.8417,176.1,176.03,1.6135]
[1736778076634,2.8417,176.1,176.05,2.8425]
[1736778076932,20.09798114,176.08,175.98,9.51709385]
[1736778077127,6.38,176.07,175.98,7.89279385]
[1736778077722,6.38,176.07,175.96,64.81095081]
[1736778077927,6.38,176.07,175.98,2.8436]
[1736778077928,2.843,176.02,175.98,2.8436]
[1736778078232,6.38,176.07,175.96,1.6686]
[1736778078432,2.8425,176.05,176.0,2.8433]
[1736778078633,20.09798114,176.05,175.96,1.6686]
[1736778079030,2.8428,176.04,175.99,2.8435]
[1736778079225,20.09798114,176.05,175.96,1.6686]
[1736778079725,20.09798114,176.05,176.01,2.8431]
[1736778079925,20.09798114,176.05,175.96,1.6686]
[1736778080331,20.09798114,176.05,175.94,3.3107]
[1736778080530,20.11845907,176.05,175.94,3.3107]
[1736778080728,20.11845907,176.05,175.98,2.8435]
[1736778080929,20.11845907,176.02,175.92,71.2971191]
[1736778081125,6.38,176.07,175.92,71.2971191]
[1736778081126,20.11845907,176.05,175.92,71.2971191]
[1736778081327,2.843,176.03,175.98,2.8436]
[1736778082029,20.11845907,176.05,175.98,2.8436]
[1736778082236,2.843,176.02,175.98,2.8436]
[1736778082728,20.11845907,176.05,175.92,71.2971191]
[1736778082933,2.8428,176.04,175.99,2.8435]
[1736778083130,20.11845907,176.05,175.92,71.2971191]
[1736778083333,6.38,176.07,176.03,2.8428]
[1736778084035,20.11845907,176.08,175.93,20.11845907]
[1736778084740,20.11845907,176.05,175.92,71.2971191]
[1736778085037,1.7061,176.09,175.96,20.11845907]
[1736778085229,6.38,176.09,175.96,20.11845907]
[1736778085432,20.11845907,176.11,175.96,20.11845907]
[1736778085632,6.38,176.1,175.96,20.11845907]
[1736778085837,6.38,176.1,176.06,2.8422]
[1736778086132,9.2218,176.1,176.06,2.8422]
[1736778086337,6.38,176.1,176.0,2.8433]
[1736778086541,6.38,176.1,175.93,20.11845907]
[1736778086732,2.8426,176.05,175.93,20.11845907]
[1736778086932,6.38,176.1,175.93,20.11845907]
[1736778087834,2.8425,176.05,175.93,20.11845907]
[1736778088034,6.38,176.1,175.93,20.11845907]
[1736778088333,2.8421,176.08,176.02,2.8429]
[1736778088533,6.38,176.1,175.93,20.11845907]
[1736778089040,20.11845907,176.11,175.93,20.11845907]
[1736778089235,6.38,176.1,175.93,20.11845907]
[1736778089635,2.8421,176.08,175.93,20.11845907]
[1736778090331,2.8421,176.08,176.03,2.8427]
[1736778090538,2.8425,176.05,175.93,20.11845907]
[1736778090838,2.8425,176.05,175.92,71.2971191]
[1736778090839,20.11845907,176.05,175.99,2.8434]
[1736778091232,20.11845907,176.05,175.92,71.2971191]
[1736778091440,20.11845907,176.05,175.95,2.844]
[1736778091741,2.8429,176.03,175.92,71.2971191]
[1736778091936,6.38,176.03,176.02,2.843]
[1736778092536,6.38,176.03,175.92,71.2971191]
[1736778092743,20.11845907,176.02,175.97,2.8438]
[1736778093038,20.11845907,176.02,175.9,3.2252]
[1736778093339,20.11845907,176.02,175.95,2.844]
[1736778093340,2.8435,176.0,175.95,2.844]
[1736778093740,20.11845907,176.02,175.95,2.844]
[1736778094042,2.8433,176.0,175.96,2.8439]
[1736778094542,20.11845907,176.02,175.96,2.8439]
[1736778094730,2.8433,176.01,175.96,2.8439]
[1736778094932,21.81275907,176.02,175.96,2.8439]
[1736778095238,21.81275907,176.02,175.9,3.2252]
[1736778095445,26.49845907,176.02,175.9,3.2252]
[1736778095638,6.38,176.02,175.9,3.2252]
[1736778095944,6.38,176.02,176.0,2.8433]
[1736778096139,26.49845907,176.02,175.9,3.2252]
[1736778096534,26.49845907,176.02,175.97,2.8437]
[1736778096737,26.49845907,176.02,175.9,3.2252]
[1736778096939,2.8436,175.99,175.93,2.8443]
[1736778097140,26.49845907,176.02,175.9,3.2252]
[1736778097340,20.11845907,175.99,175.9,1.5706]
[1736778097541,2.8443,175.94,175.89,2.8449]
[1736778097748,2.8443,175.94,175.86,1.7005]
[1736778098044,9.2241,175.95,175.91,2.8447]
[1736778100847,2.8444,175.94,175.88,2.8451]
[1736778101148,20.11845907,175.93,175.84,1.6102]
[1736778101944,20.11845907,175.9,175.82,31.5711754]
[1736778102445,2.8453,175.88,175.84,2.8458]
[1736778102648,6.38,175.87,175.82,31.5711754]
[1736778103344,6.38,175.87,175.8,7.89279385]
[1736778103645,26.49845907,175.87,175.8,7.89279385]
[1736778104438,2.8459,175.85,175.81,2.8464]
[1736778104744,26.49845907,175.87,175.79,31.5711754]
[1736778104945,20.11845907,175.84,175.79,31.5711754]
[1736778106050,22.96435907,175.84,175.79,2.8466]
[1736778106645,20.11845907,175.84,175.77,11.28089385]
[1736778106951,20.11845907,175.84,175.77,7.89279385]
[1736778107149,20.11845907,175.84,175.76,31.5711754]
[1736778107952,20.11845907,175.81,175.76,31.5711754]
[1736778108149,6.38,175.8,175.76,31.5711754]
[1736778108349,2.847,175.78,175.76,31.5711754]
[1736778108551,6.38,175.8,175.76,31.5711754]
[1736778108749,6.38,175.8,175.73,7.89279385]
[1736778109049,2.8468,175.79,175.74,2.8474]
[1736778110145,2.8469,175.78,175.74,2.8474]
[1736778110552,2.8469,175.78,175.72,9.47069385]
[1736778110752,6.38,175.8,175.72,9.47069385]
[1736778110947,20.11845907,175.84,175.72,1.5779]
[1736778110948,6.38,175.82,175.72,1.5779]
[1736778111150,20.11845907,175.79,175.72,1.5779]
[1736778111347,2.8474,175.75,175.69,31.5711754]
[1736778111549,9.2274,175.75,175.69,31.5711754]
[1736778111853,9.2274,175.75,175.71,7.89279385]
[1736778112657,9.2274,175.75,175.7,2.848]
[1736778113054,6.38,175.75,175.71,2.848]
[1736778113355,6.38,175.75,175.68,7.89279385]
[1736778113652,6.38,175.75,175.73,2.8475]
[1736778114052,6.38,175.75,175.67,9.57739385]
[1736778114248,6.38,175.75,175.67,33.2557754]
[1736778115155,6.38,175.75,175.67,1.6846]
[1736778115356,20.11845907,175.73,175.66,9.59829385]
[1736778115549,20.11845907,175.7,175.66,7.89279385]
[1736778115952,22.96665907,175.7,175.66,7.89279385]
[1736778116152,20.11845907,175.73,175.66,7.89279385]
[1736778116653,2.848,175.72,175.66,2.8487]
[1736778116858,2.848,175.72,175.64,1.5943]
[1736778117151,2.848,175.72,175.66,2.8487]
[1736778117353,2.848,175.72,175.64,1.5943]
[1736778117751,2.848,175.72,175.67,2.8485]
[1736778118450,20.11845907,175.73,175.67,2.8485]
[1736778118752,2.848,175.71,175.67,2.8485]
[1736778120255,20.11845907,175.73,175.64,1.5943]
[1736778120551,6.38,175.77,175.64,1.5943]
[1736778121056,6.38,175.77,175.66,20.11845907]
[1736778121558,194.0,175.86,175.66,20.11845907]
[1736778121758,6.38,175.81,175.66,20.11845907]
[1736778122156,6.38,175.81,175.77,2.8469]
[1736778122554,2.846,175.84,175.8,2.8465]
[1736778122752,6.38,175.84,175.72,20.11845907]
[1736778123063,6.38,175.85,175.82,2.8461]
[1736778123358,6.38,175.86,175.75,20.11845907]
[1736778123556,6.38,175.88,175.75,20.11845907]
[1736778123856,6.38,175.88,175.83,2.8459]
[1736778123857,9.2254,175.88,175.83,2.8459]
[1736778124046,6.38,175.88,175.83,2.8459]
[1736778124756,2.8453,175.88,175.83,2.8459]
[1736778125053,6.38,175.87,175.83,2.8459]
[1736778125454,9.2255,175.87,175.83,2.8459]
[1736778125848,9.2255,175.87,175.75,20.11845907]
[1736778126259,9.2255,175.87,175.83,2.8459]
[1736778126460,6.38,175.87,175.75,20.11845907]
[1736778126655,2.8461,175.83,175.73,12.85799385]
[1736778126860,20.11845907,175.84,175.78,2.8467]
[1736778127056,2.8464,175.81,175.73,12.85799385]
[1736778127265,6.38,175.8,175.73,12.85799385]
[1736778127455,6.38,175.8,175.75,2.8473]
[1736778127657,6.38,175.8,175.73,4.9652]
[1736778127853,6.38,175.8,175.78,2.8468]
[1736778128957,9.2267,175.8,175.75,2.8472]
[1736778129153,6.38,175.8,175.73,4.9652]
[1736778129550,6.38,175.8,175.79,2.8467]
[1736778130155,20.11845907,175.84,175.73,4.9652]
[1736778130362,26.49845907,175.84,175.73,4.9652]
[1736778130665,26.49845907,175.84,175.81,2.8463]
[1736778130862,26.49845907,175.84,175.73,4.9652]
[1736778131362,2.8463,175.82,175.73,4.9652]
[1736778131564,2.8463,175.82,175.73,12.85799385]
[1736778131764,2.8463,175.82,175.79,2.8467]
[1736778132161,26.49845907,175.84,175.73,12.85799385]
[1736778132464,6.38,175.84,175.73,12.85799385]
[1736778132661,6.38,175.84,175.74,56.56673578]
[1736778132861,20.11845907,175.87,175.74,56.56673578]
[1736778132862,6.38,175.85,175.74,56.56673578]
[1736778133071,6.38,175.85,175.8,2.8464]
[1736778133260,9.2257,175.85,175.75,12.89190592]
[1736778133461,6.38,175.85,175.75,12.89190592]
[1736778133762,6.38,175.85,175.84,2.8459]
[1736778135877,6.38,175.85,175.76,31.5711754]
[1736778136171,6.38,175.85,175.77,7.89279385]
[1736778136966,2.8462,175.82,175.77,7.89279385]
[1736778137264,6.38,175.85,175.77,7.89279385]
[1736778137570,6.38,175.85,175.79,2.8466]
[1736778137873,6.38,175.85,175.76,7.89279385]
[1736778138170,6.38,175.85,175.84,2.8459]
[1736778138774,9.2253,175.88,175.85,2.8457]
[1736778138973,20.11845907,175.9,175.77,20.11845907]
[1736778139167,20.11845907,175.9,175.77,71.75981028]
[1736778139168,6.38,175.89,175.77,71.75981028]
[1736778139970,6.38,175.91,175.77,71.75981028]
[1736778140165,6.38,175.91,175.79,7.89279385]
[1736778140574,9.2248,175.91,175.88,2.8452]
[1736778140775,6.38,175.91,175.79,7.89279385]
[1736778140976,6.38,175.91,175.81,7.89279385]
[1736778141172,20.11845907,175.89,175.82,1.6604]
[1736778141871,2.8453,175.88,175.84,2.8457]
[1736778142970,20.11845907,175.89,175.84,2.8457]
[1736778143175,2.8454,175.87,175.84,2.8457]
[1736778144175,20.11845907,175.89,175.85,2.8456]
[1736778144370,20.11845907,175.89,175.82,1.6604]
[1736778144577,6.38,175.9,175.82,1.6604]
[1736778144876,6.38,175.9,175.83,3.2524]
[1736778145577,6.38,175.9,175.88,2.8452]
[1736778145970,2.8448,175.91,175.88,2.8452]
[1736778146171,6.38,175.91,175.88,2.8452]
[1736778146771,20.11845907,175.92,175.9,2.8449]
[1736778146980,194.0,176.02,175.83,23.37085907]
[1736778147178,26.49845907,175.98,175.83,23.37085907]
[1736778147380,6.38,175.99,175.86,20.11845907]
[1736778147680,20.11845907,176.04,175.89,20.11845907]
[1736778147974,6.38,176.04,175.92,20.11845907]
[1736778148180,6.38,176.04,175.93,4.9353]
[1736778150079,6.38,176.04,176.0,2.8432]
[1736778150279,6.38,176.04,175.93,4.9353]
[1736778150476,26.49845907,176.04,175.93,4.9353]
[1736778150874,2.8431,176.02,175.93,4.9353]
[1736778151175,26.49845907,176.04,175.93,4.9353]
[1736778151376,2.8433,176.0,175.93,4.9353]
[1736778151679,20.11845907,176.01,175.93,4.9353]
[1736778151879,2.8436,175.98,175.94,2.8443]
[1736778152075,20.11845907,176.01,175.94,2.8443]
[1736778152275,20.11845907,176.01,175.93,4.9353]
[1736778153369,6.38,176.03,175.93,4.9353]
[1736778154477,20.11845907,176.01,175.93,1.6433]
[1736778154880,2.844,175.96,175.93,1.6433]
[1736778155075,6.38,175.96,175.86,54.87481716]
[1736778155278,6.38,175.96,175.87,1.6628]
[1736778155476,20.11845907,175.95,175.87,1.6628]
[1736778156280,2.8443,175.94,175.9,2.8448]
[1736778156474,20.11845907,175.95,175.87,1.6628]
[1736778156779,20.11845907,175.92,175.87,1.6628]
[1736778157474,20.11845907,175.92,175.86,2.8455]
[1736778157680,20.11845907,175.92,175.82,1.6809]
[1736778157878,20.11845907,175.89,175.82,1.6809]
[1736778158096,6.38,175.88,175.82,1.6809]
[1736778158271,20.11845907,175.92,175.82,1.6809]
[1736778158476,6.38,175.93,175.91,2.8446]
[1736778158680,6.38,175.93,175.82,1.6809]
[1736778160685,2.8449,175.91,175.82,1.6809]
[1736778161380,2.8447,175.92,175.82,1.6809]
[1736778161583,20.11845907,175.92,175.82,1.6809]
[1736778161776,20.11845907,175.92,175.85,2.8456]
[1736778162182,2.8452,175.89,175.85,2.8456]
[1736778162890,2.8454,175.87,175.83,2.8459]
[1736778163283,6.38,175.86,175.83,2.8459]
[1736778163587,6.38,175.86,175.8,3.3067]
[1736778163884,6.38,175.86,175.84,2.8459]
[1736778168091,6.38,175.86,175.83,2.846]
[1736778168292,6.38,175.86,175.8,1.6817]
[1736778168489,2.8458,175.85,175.8,1.6817]
[1736778168690,26.49845907,175.86,175.76,1.5625]
[1736778168988,20.11845907,175.83,175.76,1.5625]
[1736778169198,20.11845907,175.83,175.78,2.8468]
[1736778171095,20.11845907,175.83,175.77,2.847]
[1736778171496,2.8466,175.8,175.77,2.847]
[1736778171897,20.11845907,175.83,175.77,2.847]
[1736778172099,22.96455907,175.83,175.79,2.8466]
[1736778172301,6.38,175.83,175.74,1.5573]
[1736778172991,26.49845907,175.83,175.74,1.5573]
[1736778173593,26.49845907,175.83,175.72,1.7048]
[1736778174304,26.49845907,175.83,175.76,2.847]
[1736778174601,20.11845907,175.8,175.71,1.5739]
[1736778175399,2.8472,175.77,175.71,1.5739]
[1736778175800,6.38,175.76,175.69,1.662]
[1736778176701,6.38,175.76,175.73,2.8476]
[1736778176901,6.38,175.76,175.69,1.662]
[1736778177103,9.2273,175.76,175.72,2.8477]
[1736778177301,9.2273,175.76,175.69,1.662]
[1736778178405,9.2273,175.76,175.72,2.8477]
[1736778178806,6.38,175.76,175.69,1.662]
[1736778179599,6.38,175.76,175.73,2.8476]
[1736778180300,2.8474,175.75,175.71,2.848]
[1736778180505,6.38,175.76,175.69,1.662]
[1736778180903,9.2272,175.76,175.72,2.8477]
[1736778181206,6.38,175.76,175.69,1.662]
[1736778181404,2.8467,175.79,175.75,2.8472]
[1736778181705,6.38,175.78,175.75,2.8472]
[1736778182102,2.847,175.77,175.71,2.8479]
[1736778182299,20.11845907,175.74,175.65,1.5717]
[1736778183106,2.8479,175.72,175.68,2.8484]
[1736778183308,6.38,175.71,175.68,2.8484]
[1736778185906,6.38,175.71,175.7,2.8482]
[1736778186408,6.38,175.71,175.68,2.8484]
[1736778187106,9.228,175.71,175.68,2.8484]
[1736778187706,6.38,175.71,175.68,2.8484]
[1736778188204,6.38,175.71,175.7,2.8482]
[1736778190312,6.38,175.71,175.69,2.8483]
[1736778190912,6.38,175.71,175.61,3.4382]
[1736778191714,6.38,175.71,175.68,2.8483]
[1736778193011,12.61694552,175.75,175.64,12.61694552]
[1736778193712,2.8481,175.71,175.69,2.8483]
[1736778194019,2.8481,175.71,175.62,5.6988]
[1736778195914,2.8481,175.71,175.69,2.8483]
[1736778196317,2.8481,175.71,175.61,16.05514552]
[1736778196514,12.61694552,175.69,175.61,3.4382]
[1736778197222,12.61694552,175.69,175.67,2.8485]
[1736778198320,12.61694552,175.69,175.61,3.4382]
[1736778198616,12.61694552,175.69,175.68,2.8485]
[1736778199215,12.61694552,175.72,175.61,23.93075372]
[1736778199428,6.38,175.74,175.64,12.61694552]
[1736778199618,18.99694552,175.75,175.64,12.61694552]
[1736778199920,21.84434552,175.75,175.72,2.8478]
[1736778200820,21.84434552,175.75,175.73,2.8477]
[1736778201020,18.99694552,175.75,175.64,20.49255372]
[1736778201323,18.99694552,175.75,175.7,2.848]
[1736778201623,18.99694552,175.75,175.64,7.8756082]
[1736778201624,12.61694552,175.72,175.64,7.8756082]
[1736778202923,12.61694552,175.72,175.7,2.8481]
[1736778203122,12.61694552,175.72,175.65,56.61880257]
[1736778203324,18.99694552,175.75,175.65,56.61880257]
[1736778203623,2.8481,175.71,175.68,2.8485]
[1736778203830,12.61694552,175.69,175.66,12.89888215]
[1736778204425,12.61694552,175.69,175.63,31.50243281]
[1736778204627,12.61694552,175.69,175.61,3.4382]
[1736778205221,12.61694552,175.72,175.61,3.4382]
[1736778205629,12.61694552,175.72,175.64,7.90654196]
[1736778205933,15.46484552,175.72,175.64,7.90654196]
[1736778206534,15.46484552,175.72,175.69,2.8482]
[1736778206932,2.8481,175.71,175.65,12.93601909]
[1736778207133,12.61694552,175.72,175.69,2.8483]
[1736778207531,15.46484552,175.72,175.69,2.8483]
[1736778208932,2.8482,175.7,175.67,2.8486]
[1736778209433,15.46514552,175.7,175.67,2.8486]
[1736778211035,15.46514552,175.7,175.68,2.8485]
[1736778211725,15.46474552,175.73,175.7,2.848]
[1736778212034,6.38,175.74,175.64,31.62616786]
[1736778212433,9.2275,175.74,175.71,2.8479]
[1736778212937,2.848,175.72,175.68,2.8484]
[1736778213130,6.38,175.74,175.67,7.90654196]
[1736778213728,9.2276,175.74,175.7,2.848]
[1736778213933,6.38,175.74,175.7,2.848]
[1736778214236,6.38,175.74,175.66,31.62616786]
[1736778214434,12.61694552,175.71,175.66,31.62616786]
[1736778214828,2.8485,175.69,175.66,34.47486786]
[1736778215029,12.61694552,175.71,175.66,2.8487]
[1736778215334,2.8483,175.7,175.66,2.8487]
[1736778216637,12.61694552,175.71,175.63,7.90654196]
[1736778216841,12.61694552,175.74,175.63,7.90654196]
[1736778218038,12.61694552,175.74,175.66,31.62616786]
[1736778218232,12.61694552,175.74,175.72,2.8477]
[1736778218932,6.38,175.76,175.73,2.8477]
[1736778219133,12.61694552,175.77,175.68,12.61694552]
[1736778219340,12.61694552,175.77,175.69,3.1762]
[1736778219642,12.61694552,175.77,175.75,2.8472]
[1736778219836,12.61694552,175.77,175.69,3.1762]
[1736778220036,12.61694552,175.77,175.69,60.04083073]
[1736778220238,12.61694552,175.77,175.76,2.8472]
[1736778224037,12.61694552,175.77,175.75,2.8472]
[1736778224442,12.61694552,175.77,175.69,11.08274196]
[1736778225243,12.61694552,175.77,175.69,3.1762]
[1736778225540,12.61694552,175.74,175.69,3.1762]
[1736778225742,12.61694552,175.74,175.69,1.5737]
[1736778226647,15.46444552,175.74,175.71,2.8479]
[1736778227440,12.61694552,175.74,175.71,2.8479]
[1736778228136,12.61694552,175.74,175.69,1.5737]
[1736778228741,12.61694552,175.74,175.72,2.8477]
[1736778229046,12.61694552,175.77,175.69,1.5737]
[1736778229348,12.61694552,175.77,175.76,2.8472]
[1736778229543,12.61694552,175.77,175.69,1.5737]
[1736778229745,12.61694552,175.77,175.71,2.8479]
[1736778229942,12.61694552,175.77,175.69,1.5737]
[1736778230342,12.61694552,175.77,175.74,2.8473]
[1736778230640,12.61694552,175.77,175.69,1.5737]
[1736778231141,15.46394552,175.77,175.69,1.5737]
[1736778231445,15.46394552,175.77,175.74,2.8474]
[1736778232147,2.8474,175.75,175.71,2.8479]
[1736778232346,2.8474,175.75,175.69,1.5737]
[1736778232646,12.61694552,175.77,175.69,1.5737]
[1736778232847,6.38,175.79,175.71,2.8479]
[1736778232848,12.61694552,175.74,175.71,2.8479]
[1736778233345,15.46444552,175.74,175.71,2.8479]
[1736778234143,12.61694552,175.74,175.71,2.8479]
[1736778234952,15.46454552,175.74,175.69,1.5737]
[1736778235948,12.61694552,175.74,175.69,1.5737]
[1736778236351,12.61694552,175.74,175.73,2.8477]
[1736778237352,18.99694552,175.77,175.69,1.5737]
[1736778237552,12.61694552,175.8,175.69,1.5737]
[1736778239156,15.46354552,175.8,175.77,2.847]
[1736778240150,6.38,175.81,175.71,12.61694552]
[1736778240346,18.99694552,175.83,175.72,1.558]
[1736778240544,12.61694552,175.86,175.77,12.61694552]
[1736778240750,6.38,175.87,175.78,3.3056]
[1736778241651,12.61694552,175.86,175.8,2.8464]
[1736778241954,12.61694552,175.83,175.78,1.5908]
[1736778242254,15.46314552,175.83,175.79,2.8467]
[1736778242454,12.61694552,175.83,175.78,1.5908]
[1736778242957,12.61694552,175.86,175.78,1.5908]
[1736778243652,12.61694552,175.86,175.8,2.8465]
[1736778243856,12.61694552,175.86,175.78,1.5908]
[1736778244559,6.38,175.87,175.78,1.5908]
[1736778245054,6.38,175.91,175.8,12.61694552]
[1736778245259,6.38,175.91,175.81,3.3128]
[1736778245653,12.61694552,175.92,175.81,3.3128]
[1736778245960,6.38,175.91,175.81,3.3128]
[1736778246461,6.38,175.91,175.88,2.8451]
[1736778246859,15.46154552,175.92,175.88,2.8451]
[1736778247661,12.61694552,175.92,175.88,2.8451]
[1736778248052,12.61694552,175.92,175.81,3.3128]
[1736778248257,12.61694552,175.95,175.83,12.61694552]
[1736778248561,17.49923227,175.98,175.86,12.61694552]
[1736778248754,17.49923227,175.98,175.94,2.8442]
[1736778248955,18.99694552,175.98,175.87,1.6317]
[1736778249358,18.99694552,175.98,175.95,2.8441]
[1736778250362,2.8438,175.97,175.89,1.7211]
[1736778250655,18.97694552,175.98,175.89,1.7211]
[1736778250962,2.8439,175.97,175.92,2.8444]
[1736778251161,12.61694552,175.95,175.87,1.6317]
[1736778251757,15.46154552,175.92,175.81,3.1572]
[1736778252057,12.61694552,175.92,175.82,1.6535]
[1736778252462,2.8449,175.91,175.86,2.8455]
[1736778252656,9.2049,175.91,175.82,1.6535]
[1736778253363,9.2049,175.91,175.84,2.8458]
[1736778253560,9.2049,175.91,175.82,1.6535]
[1736778253955,9.2049,175.91,175.84,2.8458]
[1736778254163,12.61694552,175.89,175.82,1.6535]
[1736778254659,6.36,175.91,175.83,12.61694552]
[1736778254961,15.46104552,175.95,175.83,12.61694552]
[1736778255966,12.61694552,175.95,175.83,12.61694552]
[1736778256159,12.61694552,175.98,175.86,12.61694552]
[1736778256361,12.61694552,175.98,175.82,7.3458]
[1736778256362,12.61694552,175.98,175.89,12.61694552]
[1736778256663,12.61694552,175.98,175.9,4.8709]
[1736778256864,15.46024552,176.01,175.9,4.8709]
[1736778257059,194.0,176.11,175.92,12.61694552]
[1736778257259,12.61694552,176.04,175.92,12.61694552]
[1736778257458,12.61694552,176.01,175.9,4.8709]
[1736778257652,12.61694552,175.98,175.9,4.8709]
[1736778257857,12.61694552,175.98,175.9,1.6947]
[1736778258063,12.61694552,175.95,175.9,1.6947]
[1736778258463,12.61694552,175.95,175.83,15.79234552]
[1736778258760,12.61694552,175.95,175.84,1.6161]
[1736778258963,2.8444,175.94,175.9,2.8448]
[1736778259161,6.36,175.96,175.84,1.6161]
[1736778259162,12.61694552,175.92,175.84,1.6161]
[1736778259555,2.845,175.9,175.86,2.8455]
[1736778260263,2.8448,175.91,175.87,2.8453]
[1736778262466,12.61694552,175.92,175.9,2.8448]
[1736778262763,12.61694552,175.92,175.84,1.6161]
[1736778263164,15.46164552,175.92,175.88,2.8451]
[1736778263361,12.61694552,175.92,175.84,1.6161]
[1736778264162,12.61694552,175.92,175.89,2.8449]